Workbook

Sheet Sheet1
B1: 1131 Warwick Avenue
B2: Valuation 2025
C5: Sq | D5: Annual | F5: 2025 Actual | H5: 2025 Billings
B6: Gross Rent: | C6: Ft | D6: Rent | E6: CAM % | F6: CAM | G6: Utlities | H6: CAM | I6: Utilities | J6: Notes
A7: Ste A | B7: Ink Me Tattoo | C7: 2234 | D7: =2975*12 -> 35700 | E7: 0.504 | F7: =+D26*E7 -> 13131.27144 | G7: =+D33*E7 -> 4687.2 | H7: =1175*12 -> 14100 | I7: =300*12 -> 3600 | J7: Lease to 3/31/31, 3% annual rent bumps, one 5 year renewal option at Fair Market Rent
A8: Ste B | B8: Dimeo Construction | C8: 1970 | D8: =2627*12 -> 31524 | E8: 0.47 | F8: =+D26*E8 -> 12245.4317 | G8: =+D33*E8 -> 4371 | H8: =1255*12 -> 15060 | I8: =364*12 -> 4368 | J8: Lease to 9/30/28, no bumps, one 3 month extension option
C10: =SUM(C7:C9) -> 4204 | D10: 67224 | E10: 0.974 | F10: 25376.70314 | G10: 9058.2 | H10: 29160 | I10: 7968
B13: Gross Rents | D13: =+D10 -> 67224
B14: CAM - Operating Exp | D14: =+F10 -> 25376.70314
B15: CAM - Utilities | D15: =+G10 -> 9058.2
B17: Total Revenue | D17: =SUM(D13:D16) -> 101658.9031
B19: Operating Expenses:
B20: Real Estate Taxes | D20: 16153.11 | E20: Assessed Value $634,700 x $25.45
B21: Insurance | D21: 3601
B22: Landscaping and Snow Removal | D22: 3500
B23: Trash Removal | D23: 1800
B24: Fire Alarm/Pest | D24: 1000
B26: Total Operating Expenses | D26: =SUM(D20:D25) -> 26054.11
B28: Utlities
B29: Electric | D29: 3000
B30: Gas | D30: 4000
B31: Sewer and Water | D31: 2300
B33: Total Utilities | D33: =SUM(D29:D32) -> 9300
B35: Total Expenses | D35: =+D26+D33 -> 35354.11
B37: Net Operating Income | D37: =+D17-D35 -> 66304.79314
B39: Cap Rate | D39: =+D37/D41 -> 0.07665294005
B41: Valuation | D41: 865000
